[Event "Late-Titled-Tuesday-Blitz-May-07-2024"]
[Site "Chess.com"]
[Date "2024.05.07"]
[Round "7"]
[White "DominguezOnYoutube"]
[Black "Oleksandr_Bortnyk"]
[Result "1/2-1/2"]
[WhiteElo "3022"]
[BlackElo "3079"]
[TimeControl "180+1"]
[EndTime "15:18:02 PDT"]
[Termination "Game drawn by stalemate"]

1. e4 {[%clk 0:03:00.9]} 1... Nf6 {[%clk 0:02:59.6]} 2. e5 {[%clk 0:03:01.4]}
2... Nd5 {[%clk 0:02:59.9]} 3. d4 {[%clk 0:03:01.7]} 3... d6 {[%clk 0:03:00.4]}
4. Nf3 {[%clk 0:03:01.9]} 4... dxe5 {[%clk 0:03:01]} 5. Nxe5 {[%clk 0:03:01.7]}
5... c6 {[%clk 0:03:01.7]} 6. Be2 {[%clk 0:03:01.7]} 6... Bf5 {[%clk 0:03:01.9]}
7. O-O {[%clk 0:02:58.9]} 7... Nd7 {[%clk 0:03:02.3]} 8. Nf3 {[%clk 0:02:59.4]}
8... e6 {[%clk 0:03:02.7]} 9. c4 {[%clk 0:02:58.1]} 9... N5f6 {[%clk 0:03:03.1]}
10. Nc3 {[%clk 0:02:56.2]} 10... Bd6 {[%clk 0:03:03.2]} 11. Nh4 {[%clk
0:02:55.8]} 11... Bg6 {[%clk 0:03:02.2]} 12. Bg5 {[%clk 0:02:52.7]} 12... Qc7
{[%clk 0:02:45.2]} 13. g3 {[%clk 0:02:51.9]} 13... O-O {[%clk 0:02:40.1]} 14.
Nxg6 {[%clk 0:02:43.4]} 14... hxg6 {[%clk 0:02:41]} 15. c5 {[%clk 0:02:43.4]}
15... Be7 {[%clk 0:02:40.3]} 16. Bf4 {[%clk 0:02:44]} 16... e5 {[%clk 0:02:27]}
17. dxe5 {[%clk 0:02:41.9]} 17... Nxe5 {[%clk 0:02:27.9]} 18. Qd4 {[%clk
0:02:32.8]} 18... Nfd7 {[%clk 0:02:27]} 19. Ne4 {[%clk 0:02:33.4]} 19... Rad8
{[%clk 0:02:07.4]} 20. Rad1 {[%clk 0:02:24]} 20... Nxc5 {[%clk 0:01:47.9]} 21.
Qxe5 {[%clk 0:01:47.6]} 21... Qxe5 {[%clk 0:01:47.2]} 22. Bxe5 {[%clk
0:01:48.5]} 22... Nxe4 {[%clk 0:01:47.3]} 23. Bd3 {[%clk 0:01:30.4]} 23... Ng5
{[%clk 0:01:32.7]} 24. f4 {[%clk 0:01:14]} 24... Bc5+ {[%clk 0:01:32.7]} 25. Kg2
{[%clk 0:01:13.8]} 25... Ne6 {[%clk 0:01:33.6]} 26. Bc4 {[%clk 0:01:12.6]} 26...
Rxd1 {[%clk 0:01:28.6]} 27. Rxd1 {[%clk 0:01:12.3]} 27... Rd8 {[%clk 0:01:29.5]}
28. Rxd8+ {[%clk 0:01:10]} 28... Nxd8 {[%clk 0:01:30.4]} 29. Kf3 {[%clk
0:01:05]} 29... Ne6 {[%clk 0:01:27.1]} 30. Ke4 {[%clk 0:00:55]} 30... Kf8 {[%clk
0:01:23.5]} 31. g4 {[%clk 0:00:50.6]} 31... Bg1 {[%clk 0:01:17.5]} 32. Bxe6
{[%clk 0:00:37.1]} 32... fxe6 {[%clk 0:01:18.4]} 33. h3 {[%clk 0:00:36.4]} 33...
Kf7 {[%clk 0:01:10]} 34. b3 {[%clk 0:00:35.5]} 34... Bc5 {[%clk 0:01:07.8]} 35.
Kd3 {[%clk 0:00:31.3]} 35... Be7 {[%clk 0:01:03.1]} 36. g5 {[%clk 0:00:31.4]}
36... Bc5 {[%clk 0:00:59.5]} 37. Kc4 {[%clk 0:00:29.2]} 37... Be3 {[%clk
0:00:57.6]} 38. Kd3 {[%clk 0:00:29.3]} 38... Bc1 {[%clk 0:00:50.5]} 39. Ke4
{[%clk 0:00:29.2]} 39... a6 {[%clk 0:00:49.4]} 40. Bd4 {[%clk 0:00:28.4]} 40...
Ba3 {[%clk 0:00:48.3]} 41. Be5 {[%clk 0:00:28.3]} 41... Bf8 {[%clk 0:00:48.3]}
42. Kd4 {[%clk 0:00:26.7]} 42... Ke8 {[%clk 0:00:47.4]} 43. Kc4 {[%clk
0:00:22.8]} 43... b5+ {[%clk 0:00:46]} 44. Kd4 {[%clk 0:00:21.9]} 44... c5+
{[%clk 0:00:45.2]} 45. Ke4 {[%clk 0:00:21.8]} 45... Kd7 {[%clk 0:00:45.9]} 46.
Bc3 {[%clk 0:00:20.7]} 46... Kd6 {[%clk 0:00:41.1]} 47. Bb2 {[%clk 0:00:19]}
47... Kc6 {[%clk 0:00:34.8]} 48. Ke5 {[%clk 0:00:19.1]} 48... Kd7 {[%clk
0:00:29]} 49. Ke4 {[%clk 0:00:19.4]} 49... a5 {[%clk 0:00:20.3]} 50. Bc3 {[%clk
0:00:15.4]} 50... a4 {[%clk 0:00:19.4]} 51. bxa4 {[%clk 0:00:15.6]} 51... bxa4
{[%clk 0:00:20.3]} 52. Kd3 {[%clk 0:00:13.5]} 52... Bd6 {[%clk 0:00:19.6]} 53.
Ke4 {[%clk 0:00:13.2]} 53... Bf8 {[%clk 0:00:12.2]} 54. Bb2 {[%clk 0:00:11.5]}
54... Kc6 {[%clk 0:00:05.1]} 55. Ke5 {[%clk 0:00:11.2]} 55... Bd6+ {[%clk
0:00:05.3]} 56. Kxe6 {[%clk 0:00:07.4]} 56... Bxf4 {[%clk 0:00:05.9]} 57. h4
{[%clk 0:00:07.8]} 57... Bg3 {[%clk 0:00:03.6]} 58. Bxg7 {[%clk 0:00:06.4]}
58... Bxh4 {[%clk 0:00:03.5]} 59. Kf6 {[%clk 0:00:06.4]} 59... c4 {[%clk
0:00:03]} 60. Kxg6 {[%clk 0:00:06.4]} 60... Kd5 {[%clk 0:00:02.6]} 61. Kh5
{[%clk 0:00:06.1]} 61... Bxg5 {[%clk 0:00:02]} 62. Kxg5 {[%clk 0:00:06.6]} 62...
Ke4 {[%clk 0:00:02.9]} 63. Ba1 {[%clk 0:00:02.8]} 63... Kd3 {[%clk 0:00:03.3]}
64. Kf4 {[%clk 0:00:03.3]} 64... c3 {[%clk 0:00:01.5]} 65. Bxc3 {[%clk
0:00:02.7]} 65... Kxc3 {[%clk 0:00:02.4]} 66. Ke3 {[%clk 0:00:02.9]} 66... Kb2
{[%clk 0:00:03.2]} 67. Kd2 {[%clk 0:00:03.3]} 67... Kxa2 {[%clk 0:00:04.1]} 68.
Kc2 {[%clk 0:00:03.7]} 68... a3 {[%clk 0:00:04.6]} 69. Kc1 {[%clk 0:00:04]}
69... Ka1 {[%clk 0:00:05.4]} 70. Kc2 {[%clk 0:00:04.6]} 70... a2 {[%clk
0:00:06.3]} 71. Kc1 {[%clk 0:00:04.6]} 1/2-1/2

[Event "Late-Titled-Tuesday-Blitz-May-07-2024"]
[Site "Chess.com"]
[Date "2024.05.07"]
[Round "7"]
[White "Iball95"]
[Black "BogdanDeac"]
[Result "0-1"]
[WhiteElo "2897"]
[BlackElo "3123"]
[TimeControl "180+1"]
[EndTime "15:18:05 PDT"]
[Termination "BogdanDeac won by checkmate"]

1. e4 {[%clk 0:02:59.4]} 1... c5 {[%clk 0:02:50.5]} 2. Nf3 {[%clk 0:03:00.1]}
2... Nc6 {[%clk 0:02:46.4]} 3. Nc3 {[%clk 0:03:00.7]} 3... e5 {[%clk 0:02:44.9]}
4. Bc4 {[%clk 0:03:01.1]} 4... Be7 {[%clk 0:02:43.4]} 5. d3 {[%clk 0:03:01.3]}
5... d6 {[%clk 0:02:43.5]} 6. h3 {[%clk 0:02:57.8]} 6... a6 {[%clk 0:02:42.5]}
7. a4 {[%clk 0:02:57.6]} 7... Be6 {[%clk 0:02:41.2]} 8. O-O {[%clk 0:02:53.6]}
8... Rc8 {[%clk 0:02:31]} 9. Nh2 {[%clk 0:02:53.1]} 9... Nf6 {[%clk 0:02:23.2]}
10. Ng4 {[%clk 0:02:53.1]} 10... Nxg4 {[%clk 0:02:11.2]} 11. Bxe6 {[%clk
0:02:46.5]} 11... fxe6 {[%clk 0:01:33.5]} 12. Qxg4 {[%clk 0:02:46.6]} 12... Kd7
{[%clk 0:01:33.4]} 13. Qxg7 {[%clk 0:02:26.2]} 13... Nd4 {[%clk 0:01:30.9]} 14.
Be3 {[%clk 0:02:17.2]} 14... Nxc2 {[%clk 0:01:25.6]} 15. Rac1 {[%clk 0:02:17.3]}
15... Nb4 {[%clk 0:01:25.5]} 16. Rcd1 {[%clk 0:02:16.6]} 16... Qg8 {[%clk
0:01:21.8]} 17. Qh6 {[%clk 0:02:12.6]} 17... Rf8 {[%clk 0:01:11.8]} 18. f4
{[%clk 0:02:12.5]} 18... exf4 {[%clk 0:00:49.1]} 19. Rxf4 {[%clk 0:02:06.7]}
19... Qg6 {[%clk 0:00:19.7]} 20. Qxg6 {[%clk 0:01:57.9]} 20... hxg6 {[%clk
0:00:19.4]} 21. Rxf8 {[%clk 0:01:54.4]} 21... Rxf8 {[%clk 0:00:19.3]} 22. Rd2
{[%clk 0:01:54.6]} 22... Bf6 {[%clk 0:00:12.5]} 23. Ne2 {[%clk 0:01:51.6]} 23...
b5 {[%clk 0:00:11.4]} 24. axb5 {[%clk 0:01:51.3]} 24... axb5 {[%clk 0:00:12.3]}
25. d4 {[%clk 0:01:52.1]} 25... c4 {[%clk 0:00:12.1]} 26. Nc3 {[%clk 0:01:51]}
26... Rb8 {[%clk 0:00:11.4]} 27. Rf2 {[%clk 0:01:49.4]} 27... Ke7 {[%clk
0:00:08.7]} 28. e5 {[%clk 0:01:49.8]} 28... dxe5 {[%clk 0:00:08.6]} 29. dxe5
{[%clk 0:01:50.7]} 29... Bxe5 {[%clk 0:00:07.7]} 30. Ne4 {[%clk 0:01:45.8]}
30... Nd3 {[%clk 0:00:07.4]} 31. Bg5+ {[%clk 0:01:42.2]} 31... Kd7 {[%clk
0:00:07.2]} 32. Rf7+ {[%clk 0:01:40.8]} 32... Kc6 {[%clk 0:00:07.6]} 33. Re7
{[%clk 0:01:36.5]} 33... Bxb2 {[%clk 0:00:07.7]} 34. Rxe6+ {[%clk 0:01:32.5]}
34... Kd5 {[%clk 0:00:07.9]} 35. Re7 {[%clk 0:01:32.5]} 35... Bd4+ {[%clk
0:00:08]} 36. Kf1 {[%clk 0:01:30.5]} 36... b4 {[%clk 0:00:08.6]} 37. Nd2 {[%clk
0:01:15.5]} 37... Rf8+ {[%clk 0:00:06.5]} 38. Ke2 {[%clk 0:01:13.3]} 38... Rf2+
{[%clk 0:00:06]} 39. Kd1 {[%clk 0:01:13.9]} 39... Bc5 {[%clk 0:00:06.3]} 40.
Rd7+ {[%clk 0:01:09.8]} 40... Kc6 {[%clk 0:00:06.7]} 41. Rd8 {[%clk 0:01:07.5]}
41... Rxg2 {[%clk 0:00:05.7]} 42. Bf6 {[%clk 0:01:00.2]} 42... Nf2+ {[%clk
0:00:05.5]} 43. Ke1 {[%clk 0:00:56.6]} 43... Nd3+ {[%clk 0:00:04.8]} 44. Kd1
{[%clk 0:00:56.4]} 44... Rg1+ {[%clk 0:00:05]} 45. Ke2 {[%clk 0:00:55.6]} 45...
Re1+ {[%clk 0:00:05.1]} 46. Kf3 {[%clk 0:00:56.2]} 46... Re3+ {[%clk 0:00:05.1]}
47. Kg4 {[%clk 0:00:54.5]} 47... c3 {[%clk 0:00:04.4]} 48. Nb3 {[%clk
0:00:51.2]} 48... Bb6 {[%clk 0:00:03.5]} 49. Rc8+ {[%clk 0:00:47.9]} 49... Kb7
{[%clk 0:00:03.3]} 50. Rc4 {[%clk 0:00:46.9]} 50... Ka6 {[%clk 0:00:03.7]} 51.
Bg5 {[%clk 0:00:45.5]} 51... Re1 {[%clk 0:00:02.8]} 52. Rc6 {[%clk 0:00:41.2]}
52... Rg1+ {[%clk 0:00:02.7]} 53. Kh4 {[%clk 0:00:38.2]} 53... Kb5 {[%clk
0:00:03.1]} 54. Rxg6 {[%clk 0:00:36.4]} 54... Bf2+ {[%clk 0:00:03.2]} 55. Kh5
{[%clk 0:00:36.9]} 55... Kc4 {[%clk 0:00:03.1]} 56. Na5+ {[%clk 0:00:36.4]}
56... Kb5 {[%clk 0:00:03.4]} 57. Nb3 {[%clk 0:00:36.8]} 57... Ka4 {[%clk
0:00:03.7]} 58. Nd2 {[%clk 0:00:31.7]} 58... cxd2 {[%clk 0:00:03.6]} 59. Bxd2
{[%clk 0:00:32.6]} 59... Rxg6 {[%clk 0:00:03.6]} 60. Kxg6 {[%clk 0:00:33.5]}
60... b3 {[%clk 0:00:04.2]} 61. Bc3 {[%clk 0:00:34.1]} 61... Kb5 {[%clk
0:00:04.7]} 62. Kf5 {[%clk 0:00:33.6]} 62... Kc4 {[%clk 0:00:05.2]} 63. Ba1
{[%clk 0:00:28.8]} 63... Bd4 {[%clk 0:00:05.6]} 64. Bb2 {[%clk 0:00:27.8]} 64...
Bxb2 {[%clk 0:00:05.6]} 65. h4 {[%clk 0:00:28.7]} 65... Bd4 {[%clk 0:00:06.5]}
66. h5 {[%clk 0:00:29.6]} 66... b2 {[%clk 0:00:07.3]} 67. h6 {[%clk 0:00:30.5]}
67... b1=Q {[%clk 0:00:07.9]} 68. Kg6 {[%clk 0:00:31.1]} 68... Qg1+ {[%clk
0:00:08.1]} 69. Kh7 {[%clk 0:00:32]} 69... Qf2 {[%clk 0:00:08.3]} 70. Kg6 {[%clk
0:00:32.2]} 70... Ne5+ {[%clk 0:00:08.3]} 71. Kh7 {[%clk 0:00:32.4]} 71... Qf7+
{[%clk 0:00:08.4]} 72. Kh8 {[%clk 0:00:32.4]} 72... Ng6# {[%clk 0:00:09.3]} 0-1

[Event "Late-Titled-Tuesday-Blitz-May-07-2024"]
[Site "Chess.com"]
[Date "2024.05.07"]
[Round "7"]
[White "Zq1"]
[Black "ToddBryant"]
[Result "1-0"]
[WhiteElo "2617"]
[BlackElo "2408"]
[TimeControl "180+1"]
[EndTime "15:18:06 PDT"]
[Termination "Zq1 won by checkmate"]

1. d4 {[%clk 0:02:50.6]} 1... Nf6 {[%clk 0:03:00]} 2. c4 {[%clk 0:02:50.1]} 2...
g6 {[%clk 0:03:00.6]} 3. Nc3 {[%clk 0:02:49.3]} 3... Bg7 {[%clk 0:03:01]} 4. e4
{[%clk 0:02:48.9]} 4... d6 {[%clk 0:03:01.6]} 5. Nf3 {[%clk 0:02:49]} 5... O-O
{[%clk 0:03:02.2]} 6. Be2 {[%clk 0:02:49.3]} 6... e5 {[%clk 0:03:02.9]} 7. O-O
{[%clk 0:02:49.2]} 7... Nc6 {[%clk 0:03:03.6]} 8. d5 {[%clk 0:02:49.3]} 8... Ne7
{[%clk 0:03:04.3]} 9. Ne1 {[%clk 0:02:49.2]} 9... Nd7 {[%clk 0:03:04.2]} 10. Be3
{[%clk 0:02:49.1]} 10... f5 {[%clk 0:03:04.1]} 11. f3 {[%clk 0:02:49.7]} 11...
f4 {[%clk 0:03:04.6]} 12. Bf2 {[%clk 0:02:49.8]} 12... g5 {[%clk 0:03:05.2]} 13.
Nb5 {[%clk 0:02:49.5]} 13... b6 {[%clk 0:03:04.8]} 14. b4 {[%clk 0:02:48.3]}
14... a6 {[%clk 0:03:04.9]} 15. Nc3 {[%clk 0:02:47.7]} 15... Nf6 {[%clk
0:03:05.2]} 16. a4 {[%clk 0:02:47.2]} 16... a5 {[%clk 0:02:54.5]} 17. bxa5
{[%clk 0:02:46.2]} 17... Rxa5 {[%clk 0:02:54.9]} 18. Nd3 {[%clk 0:02:45]} 18...
Rf7 {[%clk 0:02:52.3]} 19. Be1 {[%clk 0:02:42.5]} 19... Ra8 {[%clk 0:02:48.4]}
20. Nf2 {[%clk 0:02:41]} 20... Bf8 {[%clk 0:02:43.6]} 21. Nb5 {[%clk 0:02:40.7]}
21... Ne8 {[%clk 0:02:37.7]} 22. a5 {[%clk 0:02:40.2]} 22... bxa5 {[%clk
0:02:36.8]} 23. Rxa5 {[%clk 0:02:37.6]} 23... Rxa5 {[%clk 0:02:34.9]} 24. Bxa5
{[%clk 0:02:35.7]} 24... Ng6 {[%clk 0:02:35.5]} 25. Na7 {[%clk 0:02:28]} 25...
Bd7 {[%clk 0:02:31.8]} 26. Nc6 {[%clk 0:02:25.1]} 26... Qa8 {[%clk 0:02:29.7]}
27. Bc3 {[%clk 0:02:14.3]} 27... h5 {[%clk 0:02:20.5]} 28. c5 {[%clk 0:02:09.2]}
28... Rg7 {[%clk 0:02:18.3]} 29. Qa1 {[%clk 0:02:01.1]} 29... Qc8 {[%clk
0:01:58.9]} 30. Ba6 {[%clk 0:01:42.7]} 30... Qa8 {[%clk 0:01:54.7]} 31. Bb5
{[%clk 0:01:31]} 31... Qxa1 {[%clk 0:01:39.3]} 32. Rxa1 {[%clk 0:01:29.6]} 32...
g4 {[%clk 0:01:39.3]} 33. Kf1 {[%clk 0:01:23]} 33... Nh4 {[%clk 0:01:35.9]} 34.
fxg4 {[%clk 0:01:00.9]} 34... hxg4 {[%clk 0:01:31.6]} 35. Na7 {[%clk 0:00:59.3]}
35... Bxb5+ {[%clk 0:01:08.9]} 36. Nxb5 {[%clk 0:00:55.8]} 36... g3 {[%clk
0:01:04.8]} 37. hxg3 {[%clk 0:00:53.2]} 37... Rxg3 {[%clk 0:01:05.7]} 38. Ra8
{[%clk 0:00:49.3]} 38... Kf7 {[%clk 0:00:56]} 39. Ba5 {[%clk 0:00:32.1]} 39...
Nxg2 {[%clk 0:00:40]} 40. Nxc7 {[%clk 0:00:29.8]} 40... Nxc7 {[%clk 0:00:24.7]}
41. Bxc7 {[%clk 0:00:28.6]} 41... dxc5 {[%clk 0:00:21.8]} 42. d6 {[%clk
0:00:27.1]} 42... f3 {[%clk 0:00:19.7]} 43. d7 {[%clk 0:00:24.5]} 43... Ne3+
{[%clk 0:00:15.6]} 44. Ke1 {[%clk 0:00:24.3]} 44... Be7 {[%clk 0:00:11.4]} 45.
d8=Q {[%clk 0:00:19.4]} 45... Bxd8 {[%clk 0:00:11.8]} 46. Rxd8 {[%clk
0:00:18.4]} 46... Rg1+ {[%clk 0:00:10.4]} 47. Kd2 {[%clk 0:00:17.7]} 47... Nc4+
{[%clk 0:00:10.2]} 48. Kc3 {[%clk 0:00:15.7]} 48... Rg2 {[%clk 0:00:06.6]} 49.
Kxc4 {[%clk 0:00:14.5]} 49... Rxf2 {[%clk 0:00:07.3]} 50. Rd3 {[%clk 0:00:12.1]}
50... Rc2+ {[%clk 0:00:05.9]} 51. Kd5 {[%clk 0:00:11.7]} 51... f2 {[%clk
0:00:03]} 52. Rf3+ {[%clk 0:00:11.8]} 52... Kg6 {[%clk 0:00:03.9]} 53. Bxe5
{[%clk 0:00:11.4]} 53... c4 {[%clk 0:00:03.6]} 54. Bd4 {[%clk 0:00:09.3]} 54...
c3 {[%clk 0:00:01.1]} 55. Rxf2 {[%clk 0:00:09.1]} 55... Rd2 {[%clk 0:00:01.8]}
56. Rf3 {[%clk 0:00:05.5]} 56... c2 {[%clk 0:00:01.1]} 57. Rc3 {[%clk
0:00:05.2]} 57... Kg5 {[%clk 0:00:02]} 58. e5 {[%clk 0:00:04.7]} 58... Kf5
{[%clk 0:00:02.4]} 59. e6 {[%clk 0:00:04.7]} 59... Kg6 {[%clk 0:00:02.4]} 60.
Rc8 {[%clk 0:00:02.1]} 60... Kf5 {[%clk 0:00:03]} 61. Rf8+ {[%clk 0:00:01.2]}
61... Kg4 {[%clk 0:00:03.9]} 62. Rc8 {[%clk 0:00:01.1]} 62... Kh3 {[%clk
0:00:04.8]} 63. e7 {[%clk 0:00:01.2]} 63... Kg2 {[%clk 0:00:05.2]} 64. e8=Q
{[%clk 0:00:01.5]} 64... Rf2 {[%clk 0:00:05.5]} 65. Qg6+ {[%clk 0:00:02]} 65...
Kf1 {[%clk 0:00:06]} 66. Qe4 {[%clk 0:00:02.2]} 66... Re2 {[%clk 0:00:06.2]} 67.
Qxe2+ {[%clk 0:00:02.1]} 67... Kxe2 {[%clk 0:00:06.6]} 68. Rxc2+ {[%clk
0:00:01.7]} 68... Kd1 {[%clk 0:00:07.5]} 69. Ra2 {[%clk 0:00:01.1]} 69... Ke1
{[%clk 0:00:08.1]} 70. Ke4 {[%clk 0:00:01.3]} 70... Kd1 {[%clk 0:00:09]} 71. Kd3
{[%clk 0:00:01.5]} 71... Kc1 {[%clk 0:00:09.9]} 72. Ra1# {[%clk 0:00:01.7]} 1-0

[Event "Late-Titled-Tuesday-Blitz-May-07-2024"]
[Site "Chess.com"]
[Date "2024.05.07"]
[Round "7"]
[White "Szparu"]
[Black "Maitreia"]
[Result "1/2-1/2"]
[WhiteElo "2905"]
[BlackElo "2709"]
[TimeControl "180+1"]
[EndTime "15:18:09 PDT"]
[Termination "Game drawn - insufficient material"]

1. e4 {[%clk 0:03:00.9]} 1... c5 {[%clk 0:03:00]} 2. c3 {[%clk 0:03:00.7]} 2...
Nf6 {[%clk 0:02:59.3]} 3. e5 {[%clk 0:03:01.1]} 3... Nd5 {[%clk 0:02:59.9]} 4.
d4 {[%clk 0:03:01.9]} 4... cxd4 {[%clk 0:03:00.8]} 5. Nf3 {[%clk 0:03:02.5]}
5... Nc6 {[%clk 0:03:00.8]} 6. Bc4 {[%clk 0:03:03]} 6... Nb6 {[%clk 0:03:01]} 7.
Bb3 {[%clk 0:03:03.7]} 7... d6 {[%clk 0:02:57.4]} 8. exd6 {[%clk 0:03:04.2]}
8... Qxd6 {[%clk 0:02:56.9]} 9. O-O {[%clk 0:03:04.7]} 9... dxc3 {[%clk
0:02:52.5]} 10. Qxd6 {[%clk 0:03:03.8]} 10... exd6 {[%clk 0:02:52.6]} 11. Nxc3
{[%clk 0:03:04.4]} 11... Be7 {[%clk 0:02:50.5]} 12. Bf4 {[%clk 0:03:03.3]} 12...
O-O {[%clk 0:02:49.9]} 13. Rfe1 {[%clk 0:03:03.9]} 13... Bg4 {[%clk 0:02:42.4]}
14. Nd5 {[%clk 0:02:53.4]} 14... Nxd5 {[%clk 0:02:34.1]} 15. Bxd5 {[%clk
0:02:54.3]} 15... Rfe8 {[%clk 0:02:31.9]} 16. Nd2 {[%clk 0:02:54.5]} 16... Bf6
{[%clk 0:02:20.4]} 17. Nc4 {[%clk 0:02:49.2]} 17... Rxe1+ {[%clk 0:02:02.7]} 18.
Rxe1 {[%clk 0:02:48.8]} 18... Rd8 {[%clk 0:02:03.6]} 19. Nxd6 {[%clk 0:02:45.3]}
19... Be6 {[%clk 0:01:35.5]} 20. Bxe6 {[%clk 0:02:34.3]} 20... fxe6 {[%clk
0:01:36.4]} 21. Nxb7 {[%clk 0:02:34.6]} 21... Rd4 {[%clk 0:01:28.9]} 22. Be3
{[%clk 0:02:30.8]} 22... Rb4 {[%clk 0:01:28.8]} 23. Nc5 {[%clk 0:02:30.7]} 23...
Rxb2 {[%clk 0:01:28.8]} 24. a4 {[%clk 0:02:28.2]} 24... Kf7 {[%clk 0:01:22.6]}
25. Rd1 {[%clk 0:02:19.1]} 25... Bd4 {[%clk 0:01:08.2]} 26. Nd3 {[%clk
0:02:05.6]} 26... Ra2 {[%clk 0:00:35]} 27. Bxd4 {[%clk 0:01:43]} 27... Nxd4
{[%clk 0:00:35.9]} 28. Nc5 {[%clk 0:01:43.7]} 28... e5 {[%clk 0:00:25.3]} 29. g3
{[%clk 0:01:39.9]} 29... Rc2 {[%clk 0:00:25.1]} 30. Ne4 {[%clk 0:01:38.6]} 30...
Ra2 {[%clk 0:00:24.2]} 31. Nc5 {[%clk 0:01:23.4]} 31... Rc2 {[%clk 0:00:23.8]}
32. Nd3 {[%clk 0:01:23.5]} 32... Ke6 {[%clk 0:00:22.1]} 33. Kg2 {[%clk
0:01:18.8]} 33... Ra2 {[%clk 0:00:20.6]} 34. Re1 {[%clk 0:01:18.7]} 34... Nc6
{[%clk 0:00:20.9]} 35. Rc1 {[%clk 0:01:16.3]} 35... Nd4 {[%clk 0:00:15.7]} 36.
Rc4 {[%clk 0:01:14.5]} 36... Nf5 {[%clk 0:00:14.2]} 37. Re4 {[%clk 0:01:12]}
37... Kf6 {[%clk 0:00:09]} 38. Nxe5 {[%clk 0:00:59.3]} 38... Nd6 {[%clk
0:00:08]} 39. Nd7+ {[%clk 0:01:00]} 39... Kf7 {[%clk 0:00:07.4]} 40. Rd4 {[%clk
0:01:00.7]} 40... Ke6 {[%clk 0:00:07.4]} 41. Nc5+ {[%clk 0:01:01.1]} 41... Ke5
{[%clk 0:00:07.9]} 42. Rg4 {[%clk 0:00:56.1]} 42... g6 {[%clk 0:00:07.7]} 43. h4
{[%clk 0:00:47.8]} 43... Nf5 {[%clk 0:00:07.9]} 44. Nd3+ {[%clk 0:00:45.1]}
44... Kd6 {[%clk 0:00:06.3]} 45. Rb4 {[%clk 0:00:41.5]} 45... Ne3+ {[%clk
0:00:05.4]} 46. Kf3 {[%clk 0:00:41.6]} 46... Nd5 {[%clk 0:00:06.3]} 47. Rb7
{[%clk 0:00:37.7]} 47... Ra3 {[%clk 0:00:06]} 48. Ke4 {[%clk 0:00:34.1]} 48...
Rxa4+ {[%clk 0:00:05.9]} 49. Kf3 {[%clk 0:00:33.9]} 49... Ra3 {[%clk 0:00:06.2]}
50. Ke2 {[%clk 0:00:34]} 50... Ra2+ {[%clk 0:00:06.3]} 51. Kf1 {[%clk
0:00:31.9]} 51... h5 {[%clk 0:00:05.8]} 52. Rg7 {[%clk 0:00:31]} 52... Ne7
{[%clk 0:00:04.9]} 53. Nf4 {[%clk 0:00:30.9]} 53... a5 {[%clk 0:00:04.4]} 54.
Nxg6 {[%clk 0:00:31.4]} 54... Nxg6 {[%clk 0:00:04.4]} 55. Rxg6+ {[%clk
0:00:32.3]} 55... Kc5 {[%clk 0:00:04.6]} 56. Rg5+ {[%clk 0:00:32.7]} 56... Kb4
{[%clk 0:00:05.3]} 57. Rxh5 {[%clk 0:00:33]} 57... a4 {[%clk 0:00:05.9]} 58. Rh8
{[%clk 0:00:31.5]} 58... a3 {[%clk 0:00:06.2]} 59. Rb8+ {[%clk 0:00:31.2]} 59...
Kc3 {[%clk 0:00:05.5]} 60. h5 {[%clk 0:00:31.8]} 60... Rb2 {[%clk 0:00:05.7]}
61. Ra8 {[%clk 0:00:32]} 61... a2 {[%clk 0:00:06.2]} 62. h6 {[%clk 0:00:31.3]}
62... Rb1+ {[%clk 0:00:06.6]} 63. Kg2 {[%clk 0:00:31.6]} 63... a1=Q {[%clk
0:00:07.5]} 64. Rxa1 {[%clk 0:00:29.5]} 64... Rxa1 {[%clk 0:00:08.4]} 65. g4
{[%clk 0:00:30.2]} 65... Kd4 {[%clk 0:00:08.9]} 66. f4 {[%clk 0:00:27.8]} 66...
Ke4 {[%clk 0:00:07.5]} 67. Kg3 {[%clk 0:00:28.1]} 67... Ra3+ {[%clk 0:00:07.8]}
68. Kh4 {[%clk 0:00:28.2]} 68... Kxf4 {[%clk 0:00:08.7]} 69. Kh5 {[%clk
0:00:23.5]} 69... Ra5+ {[%clk 0:00:07.1]} 70. Kg6 {[%clk 0:00:23.4]} 70... Rg5+
{[%clk 0:00:05.3]} 71. Kf7 {[%clk 0:00:22.8]} 71... Kxg4 {[%clk 0:00:03.6]} 72.
h7 {[%clk 0:00:22.9]} 72... Rh5 {[%clk 0:00:04]} 73. Kg7 {[%clk 0:00:23.4]}
73... Rxh7+ {[%clk 0:00:04]} 74. Kxh7 {[%clk 0:00:24.3]} 1/2-1/2